bitfinex/quotes_ETHUSD_20250620
["timestamp","ask_amount","ask_price","bid_price","bid_amount"]
[1750452784473,3.4042779,2432.6,2432.5,4.11098686]
[1750452784687,3.78872364,2432.6,2432.5,4.11098686]
[1750452784883,3.4042779,2432.6,2432.5,4.11098686]
[1750452785206,3.78872016,2432.6,2432.5,4.11098686]
[1750452785399,3.4042779,2432.6,2432.5,4.11098686]
[1750452785593,10.56472599,2432.6,2432.5,4.11098686]
[1750452785790,8.09472599,2432.6,2432.5,4.11098686]
[1750452785991,7.54472599,2432.6,2432.5,4.11098686]
[1750452786505,7.5448026,2432.6,2432.5,5.00074023]
[1750452786804,0.7688026,2432.6,2432.5,5.76824023]
[1750452787013,0.76878653,2432.6,2432.5,5.76824023]
[1750452787178,0.76877641,2432.6,2432.5,5.76824023]
[1750452787382,0.76883806,2432.6,2432.5,5.76824023]
[1750452787599,0.76889377,2432.6,2432.5,5.76824023]
[1750452788480,0.76886056,2432.6,2432.5,5.76824023]
[1750452788912,0.7688628,2432.6,2432.5,5.76824023]
[1750452789215,6.776,2432.7,2432.6,4.11082792]
[1750452789414,7.54482974,2432.7,2432.6,4.11082792]
[1750452790077,0.38441487,2432.7,2432.6,4.11082792]
[1750452790274,0.768825,2432.7,2432.6,4.11082792]
[1750452790829,0.768825,2432.7,2432.6,4.17222792]
[1750452791038,0.768825,2432.7,2432.6,5.48841408]
[1750452791212,0.38441013,2432.7,2432.6,5.48841408]
[1750452791378,0.76880787,2432.7,2432.6,5.48841408]
[1750452792013,10.55,2432.8,2432.7,4.11065893]
[1750452792214,11.31879012,2432.8,2432.7,4.11065893]
[1750452792431,3.0781,2432.7,2432.6,4.11082792]
[1750452792601,10.62189012,2432.7,2432.6,4.11082792]
[1750452792948,10.62193858,2432.7,2432.6,4.11082792]
[1750452793422,10.62194797,2432.7,2432.6,4.11082792]
[1750452794130,10.62200162,2432.7,2432.6,4.11082792]
[1750452794916,3.8002,2432.5,2432.3,8.8812308]
[1750452795121,18.15197938,2432.4,2432.3,8.8812308]
[1750452795319,18.15201282,2432.4,2432.3,8.8812308]
[1750452795716,18.09391282,2432.4,2432.3,4.1112308]
[1750452795924,1.31888793,2432.4,2432.3,5.0025308]
[1750452796120,7.54288793,2432.4,2432.3,5.0025308]
[1750452796438,7.5428831,2432.4,2432.3,5.0025308]
[1750452797406,7.54275068,2432.4,2432.3,4.9411308]
[1750452797649,7.54275068,2432.4,2432.3,4.1112308]
[1750452797946,10.56267628,2432.4,2432.3,4.1112308]
[1750452798602,10.62077628,2432.4,2432.3,4.1112308]
[1750452798806,10.56267628,2432.4,2432.3,4.1112308]
[1750452799279,10.5626851,2432.4,2432.3,4.1112308]
[1750452799681,10.6207851,2432.4,2432.3,4.1112308]
[1750452799890,10.62064761,2432.4,2432.3,4.1112308]
[1750452800093,0.55,2432.3,2432.2,4.11143887]
[1750452800270,1.80373493,2432.3,2432.2,4.11143887]
[1750452800584,2.18796874,2432.3,2432.2,4.11143887]
[1750452800738,2.18797115,2432.3,2432.2,4.11143887]
[1750452801131,1.80373734,2432.3,2432.2,4.11143887]
[1750452801361,2.18797511,2432.3,2432.2,4.11143887]
[1750452801567,2.12987511,2432.3,2432.2,4.11143887]
[1750452801966,2.12987511,2432.3,2432.0,4.11173802]
[1750452801967,0.55,2432.1,2432.0,4.11173802]
[1750452802184,8.09148147,2432.1,2432.0,4.11173802]
[1750452802932,8.09123737,2432.1,2432.0,4.11173802]
[1750452803137,8.09123736,2432.1,2432.0,4.11173802]
[1750452803339,10.55,2432.0,2431.9,4.11187055]
[1750452803583,11.31803204,2432.0,2431.9,4.11187055]
[1750452803994,0.55,2431.9,2431.8,4.11210709]
[1750452804145,1.31803204,2431.9,2431.8,4.11210709]
[1750452804339,1.3180532,2431.9,2431.8,4.11210709]
[1750452804786,1.31809602,2431.9,2431.8,4.11210709]
[1750452804944,18.09109602,2431.9,2431.8,4.11210709]
[1750452805141,10.55,2431.8,2431.5,4.77]
[1750452805358,0.55,2431.6,2431.5,4.17408764]
[1750452805777,0.55,2431.6,2431.5,4.11268764]
[1750452806887,0.55,2431.6,2431.5,4.17408764]
[1750452807760,0.55,2431.6,2431.5,4.11268764]
[1750452808748,0.55,2431.6,2431.5,4.17408764]
[1750452811150,0.55,2431.6,2431.5,4.11268764]
[1750452816783,1.31737216,2431.6,2431.5,4.11268764]
[1750452816982,1.31737558,2431.6,2431.5,4.11268764]
[1750452817183,0.93368779,2431.6,2431.5,4.16958764]
[1750452817424,1.31754615,2431.6,2431.5,4.16958764]
[1750452817602,1.31754615,2431.6,2431.5,4.11268764]
[1750452818326,1.31773395,2431.6,2431.5,4.11268764]
[1750452818524,1.31773657,2431.6,2431.5,4.11268764]
[1750452818728,1.31773078,2431.6,2431.5,4.11268764]
[1750452818901,0.93386917,2431.6,2431.5,4.11268764]
[1750452819105,1.31772684,2431.6,2431.5,4.11268764]
[1750452819727,0.55,2431.6,2431.5,4.11268764]
[1750452819886,1.31771208,2431.6,2431.5,4.11268764]
[1750452820288,0.93385604,2431.6,2431.5,4.11268764]
[1750452820492,1.31799835,2431.6,2431.5,4.11268764]
[1750452821024,1.31799835,2431.6,2431.5,4.16958764]
[1750452821217,1.31797533,2431.6,2431.5,4.16958764]
[1750452821597,1.31825059,2431.6,2431.5,4.16958764]
[1750452821807,1.31825493,2431.6,2431.5,4.16958764]
[1750452822432,1.31829644,2431.6,2431.5,4.16958764]
[1750452822632,1.31833485,2431.6,2431.5,4.16958764]
[1750452823334,1.31859492,2431.6,2431.5,4.16958764]
[1750452823533,1.31886095,2431.6,2431.5,4.16958764]
[1750452823711,0.9344288,2431.6,2431.5,4.16958764]
[1750452823900,1.31886143,2431.6,2431.5,4.16958764]
[1750452825735,1.31890854,2431.6,2431.5,4.16958764]
[1750452826036,1.31890765,2431.6,2431.5,4.16958764]
[1750452826333,0.76890765,2431.6,2431.5,6.01590216]
[1750452826633,0.3844288,2431.6,2431.5,12.78690216]
[1750452826836,10.0,2432.2,2432.1,4.11167303]
[1750452827034,0.55,2432.1,2432.0,4.11171772]
[1750452827337,1.31943345,2432.1,2432.0,4.11171772]
[1750452827833,1.55026887,2432.1,2432.0,4.11171772]
[1750452827999,11.55026887,2432.1,2432.0,4.11171772]
[1750452828399,11.55033336,2432.1,2432.0,4.11171772]
[1750452829106,11.16561688,2432.1,2432.0,4.11171772]
[1750452829313,11.55037601,2432.1,2432.0,4.11171772]
[1750452829525,11.55075494,2432.1,2432.0,4.11171772]
[1750452829835,18.32197681,2432.1,2432.0,4.11171772]
[1750452830135,18.3219648,2432.1,2432.0,4.11171772]
[1750452830336,18.32233024,2432.1,2432.0,4.11171772]
[1750452830495,8.32233024,2432.1,2431.9,4.11191607]
[1750452830841,8.32233024,2432.1,2431.8,4.11210605]
[1750452830842,0.6072,2431.9,2431.8,4.11211163]
[1750452831137,8.14748146,2431.9,2431.8,4.11211163]
[1750452831339,8.14751396,2431.9,2431.7,8.88222985]
[1750452831525,1.32031396,2431.8,2431.7,8.88222985]
[1750452831900,1.32034875,2431.8,2431.7,4.11222985]
[1750452832496,0.55,2431.8,2431.7,4.11222985]
[1750452832729,1.32095342,2431.8,2431.7,4.11222985]
[1750452832935,1.32095745,2431.8,2431.7,4.11222985]
[1750452833100,1.32095748,2431.8,2431.7,4.11222985]
[1750452833614,1.32095672,2431.8,2431.7,4.11222985]
[1750452833829,1.32096924,2431.8,2431.7,4.11222985]
[1750452834145,1.32096928,2431.8,2431.7,4.11222985]
[1750452834842,1.32098498,2431.8,2431.7,4.11222985]
[1750452835145,1.32099143,2431.8,2431.7,4.11222985]
[1750452835346,8.09099143,2431.8,2431.7,4.11222985]
[1750452835548,8.09097458,2431.8,2431.7,4.11222985]
[1750452835947,8.09097127,2431.8,2431.7,4.11222985]
[1750452836444,7.70549571,2431.8,2431.7,4.11222985]
[1750452836648,8.09098362,2431.8,2431.7,4.11222985]
[1750452837090,8.09097362,2431.8,2431.7,4.11222985]
[1750452837247,8.09097453,2431.8,2431.7,4.11222985]
[1750452837587,8.09097732,2431.8,2431.7,4.11222985]
[1750452837886,8.09097916,2431.8,2431.7,4.11222985]
[1750452838100,8.09098297,2431.8,2431.7,4.11222985]
[1750452839464,8.09097006,2431.8,2431.7,4.11222985]
[1750452839776,8.09097013,2431.8,2431.7,4.11222985]
[1750452839972,8.09095803,2431.8,2431.7,4.11222985]
[1750452840285,0.6072,2431.7,2431.5,4.77]
[1750452840466,0.6072,2431.7,2431.2,0.8172]
[1750452840467,10.55,2431.7,2431.6,4.1125185]
[1750452840641,11.55226691,2431.7,2431.6,4.1125185]
[1750452840846,1.55226691,2431.7,2431.6,4.1125185]
[1750452841171,1.55227294,2431.7,2431.6,4.1125185]
[1750452841370,1.55224367,2431.7,2431.6,4.1125185]
[1750452841571,3.02,2431.5,2430.7,0.7634]
[1750452841785,3.02,2431.5,2430.6,3.42794257]
[1750452841786,10.55,2430.8,2430.6,7.54207919]
[1750452842008,10.55,2430.8,2429.7,4.77]
[1750452842010,29.13577162,2430.7,2430.3,4.77]
[1750452842219,20.77031672,2430.5,2430.4,4.11454904]
[1750452842525,10.611,2430.4,2429.9,0.8213]
[1750452842702,0.55,2430.2,2430.1,4.11493065]
[1750452843011,1.32131562,2430.2,2430.1,4.11493065]
[1750452843310,1.32132219,2430.2,2430.1,4.11493065]
[1750452844172,0.55,2430.0,2429.8,4.11548502]
[1750452844505,17.86129969,2429.9,2429.8,4.11548502]
[1750452844683,0.55,2429.8,2429.6,4.1158523]
[1750452844878,18.08694816,2429.7,2429.6,4.1158523]
[1750452845306,28.24617525,2429.7,2429.2,0.0579]
[1750452845620,10.55,2429.7,2429.6,4.11590385]
[1750452845811,18.08676956,2429.7,2429.6,4.11590385]
[1750452846102,17.70288478,2429.7,2429.6,4.11590385]
[1750452846311,0.38388478,2429.7,2429.6,4.99310385]
[1750452846472,9.877,2430.8,2430.0,4.11522633]
[1750452846473,6.769,2430.1,2430.0,4.11522633]
[1750452846772,17.15270866,2430.1,2430.0,4.11522633]
[1750452847182,17.15268773,2430.1,2430.0,4.11522633]
[1750452847411,17.319,2430.1,2430.0,4.11522633]
[1750452847786,10.15931672,2430.6,2430.0,4.11522633]
[1750452847787,10.95661672,2430.6,2430.5,4.11437975]
[1750452847988,0.38275512,2430.6,2430.5,4.11437975]
[1750452848222,6.77,2430.7,2430.6,4.11421048]
[1750452848521,0.6072,2431.0,2430.9,4.11370274]
[1750452848679,7.20986155,2431.0,2430.9,4.11370274]
[1750452849182,17.59252194,2431.0,2430.9,4.11370274]
[1750452850145,17.5925264,2431.0,2430.9,4.11370274]
[1750452850341,18.14239892,2431.0,2430.9,4.11370274]
[1750452850520,11.37227338,2431.0,2430.9,4.11370274]
[1750452850721,18.14227338,2431.0,2430.9,4.11370274]
[1750452850921,18.14227151,2431.0,2430.9,4.11370274]
[1750452851241,18.14227174,2431.0,2430.9,4.11370274]
[1750452851422,18.14227054,2431.0,2430.9,4.11370274]
[1750452852263,18.14230845,2431.0,2430.9,4.11370274]
[1750452852956,18.1422239,2431.0,2430.9,4.11370274]
[1750452853173,18.1422239,2431.0,2430.7,4.11398052]
[1750452853174,10.55,2430.9,2430.7,4.11393055]
[1750452853381,17.32,2430.8,2430.7,4.11393055]
[1750452853576,0.55,2430.7,2430.4,4.17242888]
[1750452853873,0.55,2430.7,2430.3,4.77]
[1750452853874,0.55,2430.7,2430.6,4.11421048]
[1750452854165,7.32,2430.7,2430.6,4.11421048]
[1750452854958,10.0,2430.8,2430.7,4.11404122]
[1750452855140,10.55,2430.8,2430.7,4.17194122]
[1750452857559,10.55,2430.8,2430.7,4.11404122]
[1750452860368,10.55,2430.8,2430.7,4.17194122]
[1750452861765,0.55,2430.8,2430.7,4.11404122]
[1750452861965,1.3162805,2430.8,2430.7,4.11404122]
[1750452862282,0.55,2430.8,2430.7,4.11404122]
[1750452862757,0.93315359,2430.8,2430.7,4.11404122]
[1750452862962,0.93314751,2430.8,2430.7,4.11404122]
[1750452863165,0.933145,2430.8,2430.7,4.11404122]
[1750452863369,0.55,2430.8,2430.7,4.11404122]
[1750452863647,10.55,2430.8,2430.7,4.11404122]
[1750452863983,11.316292,2430.8,2430.7,4.11404122]
[1750452864144,10.93315721,2430.8,2430.7,4.11404122]
[1750452864342,11.31643455,2430.8,2430.7,4.11404122]
[1750452864586,11.31667069,2430.8,2430.7,4.11404122]
[1750452865185,11.31702317,2430.8,2430.7,4.11404122]
[1750452865687,11.31704094,2430.8,2430.7,4.11404122]
[1750452866042,11.31704277,2430.8,2430.7,4.11404122]
[1750452866246,11.31704324,2430.8,2430.7,4.11404122]
[1750452866481,10.93352279,2430.8,2430.7,4.11404122]
[1750452866687,11.31704558,2430.8,2430.7,4.11404122]
[1750452866851,11.3171519,2430.8,2430.7,4.11404122]
[1750452867069,11.31726492,2430.8,2430.7,4.11404122]
[1750452867268,11.3181856,2430.8,2430.7,4.11404122]
[1750452867869,11.31817748,2430.8,2430.7,4.11404122]
[1750452868236,10.55,2430.8,2430.7,4.11404122]
[1750452868433,11.3181672,2430.8,2430.7,4.11404122]
[1750452868726,11.31817954,2430.8,2430.7,4.11404122]
[1750452869297,1.3786,2430.7,2430.6,4.1140713]
[1750452869471,8.91577808,2430.7,2430.6,4.1140713]
[1750452869805,20.8460948,2430.7,2430.5,4.11427612]
[1750452869990,1.31837901,2430.6,2430.5,4.11427612]
[1750452870194,1.31838727,2430.6,2430.5,4.11427612]
[1750452870592,1.31838453,2430.6,2430.5,4.11427612]
[1750452870807,8.08737329,2430.6,2430.5,4.11427612]
[1750452871103,7.53737329,2430.6,2430.5,4.98257612]
[1750452871400,7.15376016,2430.6,2430.5,4.98257612]
[1750452871566,7.53852032,2430.6,2430.5,4.98257612]
[1750452872128,7.15376189,2430.6,2430.5,4.98257612]
[1750452872307,7.53849549,2430.6,2430.5,4.98257612]
[1750452872924,7.53854862,2430.6,2430.5,4.98257612]
[1750452873226,0.76954825,2430.6,2430.5,4.98257612]
[1750452874394,17.319,2430.7,2430.6,4.11421048]
[1750452874613,18.08885112,2430.7,2430.6,4.11421048]
[1750452875046,8.08885112,2430.7,2430.6,4.11421048]
[1750452875363,8.08885112,2430.7,2430.6,4.17381048]
[1750452875650,8.08882964,2430.7,2430.6,4.17381048]
[1750452876024,8.08887595,2430.7,2430.6,4.17381048]
[1750452876214,8.08887465,2430.7,2430.6,4.17381048]
[1750452876416,0.76987465,2430.7,2430.6,4.17381048]
[1750452876630,7.53891927,2430.7,2430.6,4.11421048]
[1750452877150,7.53892052,2430.7,2430.6,4.11421048]
[1750452877652,8.09007818,2430.7,2430.6,4.11421048]
[1750452877826,8.32140293,2430.7,2430.6,4.11421048]
[1750452878560,8.32141865,2430.7,2430.6,4.11421048]
[1750452879118,7.70453909,2430.7,2430.6,4.11421048]
[1750452879319,8.09006908,2430.7,2430.6,4.11421048]
[1750452879660,8.3213918,2430.7,2430.6,4.11421048]
[1750452879818,7.93585014,2430.7,2430.6,4.11421048]
[1750452880012,8.32139501,2430.7,2430.6,4.11421048]
[1750452880232,8.32139892,2430.7,2430.6,4.11421048]
[1750452880524,9.24051534,2430.7,2430.6,4.11421048]
[1750452880723,9.29751534,2430.7,2430.6,4.11421048]
[1750452880927,8.32139134,2430.7,2430.6,4.11421048]
[1750452881427,7.70453043,2430.7,2430.6,4.17381048]
[1750452881624,8.09004824,2430.7,2430.6,4.17381048]
[1750452881830,7.5400087,2430.7,2430.6,4.99421048]
[1750452882048,0.7710087,2430.7,2430.6,4.99421048]
[1750452882353,0.7710087,2430.7,2430.6,6.38206916]
[1750452883051,0.77095848,2430.7,2430.6,6.38206916]
[1750452883929,0.7709394,2430.7,2430.6,6.38206916]
[1750452884242,0.7709394,2430.7,2430.6,16.38206916]
[1750452884947,0.77090235,2430.7,2430.6,16.38206916]
[1750452885139,0.77072922,2430.7,2430.6,16.38206916]
[1750452885354,0.77072922,2430.7,2430.6,21.15206916]
[1750452885737,0.0572,2431.0,2430.9,4.11370274]
[1750452885738,0.6072,2431.0,2430.9,4.11370274]
[1750452885949,0.6072,2431.0,2430.9,4.17330274]
[1750452885950,1.37777126,2431.0,2430.9,4.17330274]
[1750452886249,0.82777126,2431.0,2430.9,9.81315155]
[1750452886450,0.82777126,2431.0,2430.9,10.55211603]
[1750452886616,0.44248563,2431.0,2430.9,4.11370274]
[1750452886814,0.82770673,2431.0,2430.9,4.11370274]
[1750452887453,1.37772181,2431.0,2430.9,4.11370274]
[1750452887836,1.37773715,2431.0,2430.9,4.11370274]
[1750452888364,1.37759783,2431.0,2430.9,4.11370274]
[1750452888560,1.37759722,2431.0,2430.9,4.11370274]
[1750452888721,1.3775277,2431.0,2430.9,4.11370274]
[1750452888923,0.99236385,2431.0,2430.9,4.11370274]
[1750452889259,1.37752328,2431.0,2430.9,4.11370274]
[1750452890157,8.14552489,2431.0,2430.9,4.11370274]
[1750452890339,7.3752,2431.0,2430.9,4.11370274]
[1750452890659,8.14552466,2431.0,2430.9,4.11370274]
[1750452891558,18.1454284,2431.0,2430.9,4.11370274]
[1750452892962,18.14539327,2431.0,2430.9,4.11370274]
[1750452893328,18.14539305,2431.0,2430.9,4.11370274]
[1750452893758,17.76027885,2431.0,2430.9,4.11370274]
[1750452893961,18.14520558,2431.0,2430.9,4.11370274]
[1750452894356,17.3752,2431.0,2430.9,4.11370274]
[1750452894558,18.1452056,2431.0,2430.9,4.11370274]
[1750452894764,17.7602028,2431.0,2430.9,4.11370274]
[1750452894963,11.37720584,2431.0,2430.9,4.11370274]
[1750452895171,18.14420584,2431.0,2430.9,4.11370274]
[1750452895467,17.7592028,2431.0,2430.9,4.11370274]
[1750452895673,18.14420896,2431.0,2430.9,4.11370274]
[1750452896169,18.14420746,2431.0,2430.9,4.11370274]
[1750452896666,8.14411403,2431.0,2430.9,4.17330274]
[1750452896875,8.14410315,2431.0,2430.9,4.17330274]
[1750452897271,7.3742,2431.0,2430.9,4.17330274]
[1750452897441,8.1440899,2431.0,2430.9,4.17330274]
[1750452897939,8.14408963,2431.0,2430.9,4.17330274]
[1750452898168,7.59408963,2431.0,2430.9,4.17330274]
[1750452898567,7.59408474,2431.0,2430.9,4.17330274]
[1750452898766,0.82707962,2431.0,2430.9,4.17330274]
[1750452899257,0.8270796,2431.0,2430.9,4.17330274]
[1750452900076,0.44213983,2431.0,2430.9,4.17330274]
[1750452900282,0.82724762,2431.0,2430.9,4.17330274]
[1750452900490,1.37724762,2431.0,2430.9,4.11370274]
[1750452900984,2.19167238,2431.0,2430.9,4.11370274]
[1750452901185,1.37726656,2431.0,2430.9,4.11370274]
[1750452901387,0.6072,2431.0,2430.9,4.11370274]
[1750452901587,1.37728053,2431.0,2430.9,4.11370274]
[1750452902181,1.37728053,2431.0,2430.9,4.93380274]
[1750452902182,0.82727905,2431.0,2430.9,4.93380274]
[1750452902488,0.82724477,2431.0,2430.9,4.11370274]
[1750452902652,0.99217664,2431.0,2430.9,4.11370274]
[1750452902859,8.14326524,2431.0,2430.9,4.11370274]
[1750452903160,8.14326361,2431.0,2430.9,4.11370274]
[1750452903353,8.14327064,2431.0,2430.9,4.11370274]
[1750452903747,7.75822631,2431.0,2430.9,4.11370274]
[1750452903946,0.99222403,2431.0,2430.9,4.17210274]
[1750452904149,1.37724495,2431.0,2430.9,4.17210274]
[1750452904386,0.99222403,2431.0,2430.9,4.17210274]
[1750452904604,1.37724888,2431.0,2430.9,4.17210274]
[1750452904775,0.6072,2431.0,2430.9,4.17210274]
[1750452904978,1.37725706,2431.0,2430.9,4.17210274]
[1750452905287,1.37727239,2431.0,2430.9,4.17210274]
[1750452905474,1.3772883,2431.0,2430.9,4.17210274]
[1750452905679,1.37728626,2431.0,2430.9,4.17210274]
[1750452906628,1.37734796,2431.0,2430.9,4.17210274]
[1750452906797,1.37733518,2431.0,2430.9,4.17210274]
[1750452907127,1.37738613,2431.0,2430.9,4.17210274]
[1750452907422,1.37738502,2431.0,2430.9,4.17210274]
[1750452908523,0.6072,2431.0,2430.9,4.17210274]
[1750452908722,1.37746925,2431.0,2430.9,4.17210274]
[1750452909289,1.37768731,2431.0,2430.9,4.17210274]
[1750452909990,0.82768731,2431.0,2430.9,4.17210274]
[1750452910232,0.82768731,2431.0,2430.9,5.47769603]
[1750452910526,10.82768731,2431.0,2430.9,5.47769603]
[1750452910730,0.82768731,2431.0,2430.9,4.17210274]
[1750452911090,0.82769763,2431.0,2430.9,4.17210274]
[1750452911430,0.82792613,2431.0,2430.9,4.17210274]
[1750452911936,0.82792613,2431.0,2430.9,8.94210274]
[1750452914245,0.82841662,2431.0,2430.9,8.94210274]
[1750452914937,0.82842538,2431.0,2430.9,8.94210274]
[1750452915121,0.8284239,2431.0,2430.9,8.94210274]
[1750452915324,0.82844351,2431.0,2430.9,8.94210274]
[1750452915524,0.82845258,2431.0,2430.9,8.94210274]
[1750452915821,0.44282792,2431.0,2430.9,8.94210274]
[1750452915998,0.82844918,2431.0,2430.9,8.94210274]
[1750452916198,0.82846363,2431.0,2430.9,8.94210274]
[1750452916494,0.82847939,2431.0,2430.9,8.88370274]
[1750452916738,0.82847717,2431.0,2430.9,8.88370274]
[1750452917337,10.82844808,2431.0,2430.9,8.88370274]
[1750452917740,10.82844808,2431.0,2430.9,8.94210274]
[1750452918449,11.37851148,2431.0,2430.9,8.88370274]
[1750452918607,11.37852431,2431.0,2430.9,8.88370274]
[1750452918818,10.99286023,2431.0,2430.9,8.88370274]
[1750452919041,11.37852533,2431.0,2430.9,8.88370274]
[1750452919246,11.43982526,2431.0,2430.9,8.88370274]
[1750452919621,11.37852515,2431.0,2430.9,8.88370274]
[1750452920029,11.37850842,2431.0,2430.9,8.88370274]
[1750452920505,11.37851854,2431.0,2430.9,8.88370274]
[1750452920742,10.82851854,2431.0,2430.9,8.94210274]
[1750452920909,0.82851854,2431.0,2430.9,11.01575603]
[1750452921343,0.44285927,2431.0,2430.9,11.01575603]
[1750452922033,0.44264846,2431.0,2430.9,11.01575603]
[1750452922353,0.44264353,2431.0,2430.9,11.01575603]
[1750452922550,0.44264522,2431.0,2430.9,11.01575603]
[1750452922857,0.0572,2431.0,2430.9,11.01575603]
[1750452925364,0.0572,2431.0,2430.9,16.94645603]
[1750452925651,0.0572,2431.0,2430.9,17.00485603]
[1750452930356,0.0572,2431.0,2430.9,17.76065603]
[1750452932325,0.0572,2431.0,2430.9,10.99765603]
[1750452932664,0.0572,2431.0,2430.9,17.75965603]
[1750452939631,0.0572,2431.0,2430.9,10.99765603]
[1750452939848,0.0572,2431.0,2430.9,19.52665603]
[1750452941373,0.38402324,2431.9,2431.2,4.11319512]
[1750452941543,0.6113,2431.9,2431.8,4.11218027]
[1750452941744,0.99533737,2431.9,2431.8,4.11218027]
[1750452943068,0.99538396,2431.9,2431.8,4.11218027]
[1750452943261,0.99537455,2431.9,2431.8,4.11218027]
[1750452943941,0.99536993,2431.9,2431.8,4.11218027]
[1750452944142,0.99537215,2431.9,2431.8,4.11218027]
[1750452944453,0.99537337,2431.9,2431.8,4.11218027]
[1750452944980,0.6113,2431.9,2431.8,4.11218027]
[1750452945142,0.99552396,2431.9,2431.8,4.11218027]
[1750452945975,1.80452396,2431.9,2431.8,4.11218027]
[1750452946646,1.8045499,2431.9,2431.8,4.11218027]
[1750452948182,12.1890752,2431.9,2431.8,4.11218027]
[1750452948368,11.8045499,2431.9,2431.8,4.11218027]
[1750452948966,11.80482142,2431.9,2431.8,4.11218027]
[1750452949481,12.18934387,2431.9,2431.8,4.11218027]
[1750452949775,10.0,2431.8,2431.7,4.11221227]
[1750452950099,1.4207,2431.7,2431.6,4.76999915]
[1750452950302,2.18981708,2431.7,2431.6,8.88251765]
[1750452950590,18.94881708,2431.7,2431.6,8.88251765]
[1750452950991,18.94894924,2431.7,2431.6,8.88251765]
[1750452951190,19.5459347,2431.7,2431.6,8.88251765]
[1750452951660,19.54610896,2431.7,2431.6,8.88251765]
[1750452951985,19.5462877,2431.7,2431.6,4.76999915]
[1750452952548,19.16148434,2431.7,2431.6,4.76999915]
[1750452952884,19.77719178,2431.7,2431.6,4.76999915]
[1750452953087,19.77719178,2431.7,2431.2,4.11305355]
[1750452953088,12.47,2431.6,2431.2,4.11305355]
[1750452953382,12.47,2431.6,2431.1,4.11322256]
[1750452953383,0.8428,2431.2,2431.1,4.11322256]
[1750452953587,1.612438,2431.2,2431.1,4.11322256]
[1750452953784,1.55114123,2431.2,2431.1,4.11322256]
[1750452954081,0.76965941,2431.2,2431.1,4.11322256]
[1750452954293,0.38481913,2431.2,2431.1,5.01758268]
[1750452954500,17.309,2431.3,2431.2,4.11319512]
[1750452954653,18.07862982,2431.3,2431.2,4.11319512]
[1750452955393,18.07864181,2431.3,2431.2,4.11319512]
[1750452955591,18.07862589,2431.3,2431.2,4.11319512]
[1750452955793,17.52862589,2431.3,2431.2,4.11319512]
[1750452955952,10.76962589,2431.3,2431.2,4.11319512]
[1750452956254,10.76962589,2431.3,2431.2,5.44343077]
[1750452957377,10.76946684,2431.3,2431.2,5.44343077]
[1750452958192,11.31946684,2431.3,2431.2,4.11319512]
[1750452958353,11.38076684,2431.3,2431.2,4.11319512]
[1750452958558,12.20586684,2431.3,2431.2,4.11319512]
[1750452959001,12.14456684,2431.3,2431.2,4.11319512]
[1750452959299,18.90344975,2431.3,2431.2,4.11319512]
[1750452959452,18.90329758,2431.3,2431.2,4.11319512]
[1750452959649,18.51869879,2431.3,2431.2,4.11319512]
[1750452960076,18.9646111,2431.3,2431.2,4.11319512]
[1750452960286,18.96462776,2431.3,2431.2,4.11319512]
[1750452960687,11.31922276,2431.3,2431.2,4.11319512]
[1750452960890,18.07818157,2431.3,2431.2,4.11319512]
[1750452961050,18.07818966,2431.3,2431.2,4.11319512]
[1750452961687,17.69359164,2431.3,2431.2,4.11319512]
[1750452961986,18.0782004,2431.3,2431.2,4.11319512]
[1750452962312,18.07817461,2431.3,2431.2,4.11319512]
[1750452962519,18.07812907,2431.3,2431.2,4.11319512]
[1750452963014,18.0781252,2431.3,2431.2,4.11319512]
[1750452963521,17.52806586,2431.3,2431.2,4.17239512]
[1750452963720,17.52806586,2431.3,2431.2,4.94175689]
[1750452964381,17.52806544,2431.3,2431.2,4.94175689]
[1750452964581,17.52800862,2431.3,2431.2,4.94175689]
[1750452965126,17.52800862,2431.3,2431.2,9.71175604]
[1750452965633,17.52794635,2431.3,2431.2,9.71175604]
[1750452965831,18.07794635,2431.3,2431.2,8.88319427]
[1750452966072,18.92198316,2431.3,2431.2,8.88319427]
[1750452966206,12.1040584,2431.3,2431.2,8.88319427]
[1750452966530,18.4776292,2431.3,2431.2,8.88319427]
[1750452966729,18.92095715,2431.3,2431.2,8.88319427]
[1750452967096,18.920966,2431.3,2431.2,8.88319427]
[1750452967307,18.9209739,2431.3,2431.2,8.88319427]
[1750452967498,18.92097253,2431.3,2431.2,8.88319427]
[1750452967711,18.92097457,2431.3,2431.2,8.88319427]
[1750452967929,18.92097487,2431.3,2431.2,8.88319427]
[1750452968135,18.92097305,2431.3,2431.2,8.88319427]
[1750452968335,21.39100378,2431.3,2431.2,8.88319427]
[1750452968843,21.33207445,2431.3,2431.2,8.88319427]
[1750452969404,21.33207386,2431.3,2431.2,8.88319427]
[1750452969603,21.39097386,2431.3,2431.2,8.88319427]
[1750452970534,21.39097386,2431.3,2431.2,4.76999915]
[1750452970704,21.39097386,2431.3,2431.2,8.88319427]
[1750452970916,21.39097386,2431.3,2431.2,4.11319512]
[1750452971657,20.16250478,2431.3,2431.2,4.11319512]
[1750452971951,20.5470007,2431.3,2431.2,4.11319512]
[1750452972343,20.54697858,2431.3,2431.2,4.11319512]
[1750452972950,0.76897858,2431.3,2431.2,4.99503422]
[1750452973105,12.5582,2431.9,2431.8,4.11218027]
[1750452973304,12.34101583,2431.9,2431.8,4.11218027]
[1750452973543,0.76908986,2431.9,2431.8,4.11218027]
[1750452973699,0.76907599,2431.9,2431.8,4.99974888]
[1750452973900,0.76907599,2431.9,2431.8,4.94054888]
[1750452974145,0.76896722,2431.9,2431.8,4.11218027]
[1750452974454,10.55,2432.0,2431.9,4.11201118]
[1750452974620,0.768859,2432.0,2431.9,4.11201118]
[1750452975015,11.318859,2432.0,2431.9,4.11201118]
[1750452975430,10.93443773,2432.0,2431.9,4.11201118]
[1750452975639,0.55,2431.9,2431.6,4.1125185]
[1750452975932,8.1347752,2431.8,2431.7,4.11234938]
[1750452976109,11.4223,2431.7,2431.6,4.11242863]
[1750452976310,12.19118273,2431.7,2431.6,4.11242863]
[1750452976510,12.19132288,2431.7,2431.6,4.11242863]
[1750452976750,17.69151144,2431.7,2431.6,4.11242863]
[1750452977057,18.07601165,2431.7,2431.6,4.11242863]
[1750452977379,18.0760119,2431.7,2431.6,4.11242863]
[1750452977648,18.07601132,2431.7,2431.6,4.11242863]
[1750452977853,18.07601168,2431.7,2431.6,4.11242863]
[1750452978355,20.54601168,2431.7,2431.6,4.11242863]
[1750452979422,20.54614372,2431.7,2431.6,4.11242863]
[1750452980237,20.54619533,2431.7,2431.6,4.11242863]
[1750452980549,20.54619645,2431.7,2431.6,4.11242863]
[1750452980939,23.42310039,2431.7,2431.5,4.76999915]
[1750452981181,3.84809074,2431.6,2431.5,4.76999915]
[1750452981382,13.8364,2431.3,2431.2,4.11304552]
[1750452981580,3.0789,2431.1,2431.0,4.11353352]
[1750452981766,8.13424535,2431.1,2431.0,4.11353352]
[1750452982280,8.1341645,2431.1,2431.0,4.11353352]